Cogmind - Beta 14 @@@ ROGUE MODE // 2024.08.11 @ 22:18:57 Player: Khanable Result: Destroyed by G-34 Mercenary with Small Laser Performance ------------- Evolutions (0) 0 Regions Visited (1) 200 Robots Destroyed (19) 95 Value Destroyed (544) 544 Prototype IDs (0) 0 Alien Tech Used (0) 0 Bonus (0) 0 TOTAL SCORE: 839 Bonus ------- None Cogmind --------- Core Integrity 0/250 Matter 190/300 Energy 207/250 System Corruption 0% Temperature Cool (6) Movement Walking (190) Ox1 Location -10/Materials Parts ------- > --- POWER (1) -------- Ion Engine > --- PROPULSION (2) --- Aluminum Leg Aluminum Leg > --- UTILITY (2) ------ Large Storage Unit Improved Terrain Scanner > --- WEAPON (2) ------- Light Cannon Grenade Launcher > --- INVENTORY (15) --- Light Ion Engine Aluminum Leg Aluminum Leg Aluminum Leg Aluminum Leg Aluminum Leg Aluminum Leg Aluminum Leg Improved Heat Sink Medium Matter Pod (100) Assault Rifle Light Assault Rifle Mining Laser Peak State ------------ > --- POWER ------------ Ion Engine > --- PROPULSION ------- Aluminum Leg Aluminum Leg > --- UTILITY ---------- Large Storage Unit Improved Terrain Scanner > --- WEAPON ----------- Assault Rifle Light Assault Rifle > --- INVENTORY -------- Ion Engine Light Ion Engine Aluminum Leg Aluminum Leg Aluminum Leg Aluminum Leg Aluminum Leg Aluminum Leg Improved Heat Sink Medium Matter Pod Light Assault Rifle Light Assault Rifle Grenade Launcher Mining Laser [Rating: 10] Favorites ----------- Power Ion Engine Engine Ion Engine Propulsion Light Treads Treads Light Treads Leg Aluminum Leg Utility Large Storage Unit Device Improved Terrain Scanner Storage Large Storage Unit Weapon Assault Rifle Ballistic Gun Assault Rifle Ballistic Cannon Light Cannon Launcher Grenade Launcher Special Weapon Mining Laser Build | -11 -10 ------- Run | Yrd Mat Slots Evolved . | . . Power . | . . Propulsion . | . . Utility . | . . Weapon . | . . Parts Attached 23 | 5 18 Power 3 | 1 2 Engine 3 | 1 2 Core . | . . Reactor . | . . Propulsion 7 | 2 5 Treads 2 | 2 . Leg 5 | . 5 Wheel . | . . Hover . | . . Flight . | . . Utility 5 | . 5 Device 2 | . 2 Storage 3 | . 3 Processor . | . . Hackware . | . . Protection . | . . Artifact . | . . Weapon 8 | 2 6 Energy Gun . | . . Energy Cannon . | . . Ballistic Gun 5 | 2 3 Ballistic Cannon 1 | . 1 Launcher 1 | . 1 Special Weapon 1 | . 1 Impact Weapon . | . . Slashing Weapon . | . . Piercing Weapon . | . . Special Melee Weapon . | . . Unidentified Prototypes . | . . Parts Lost 8 | . 8 Power 2 | . 2 Propulsion 2 | . 2 Utility 1 | . 1 Weapon 3 | . 3 Highest Loss Streak 2 | . 2 To Critical Strikes . | . . Average Slot Usage (%) 93 | . 93 Engine 12 | . 12 Treads 12 | . 12 Leg 14 | . 14 Device 7 | . 7 Storage 17 | . 17 Ballistic Gun 22 | . 22 Ballistic Cannon 2 | . 2 Special Weapon 2 | . 2 Peak Build Rating 10 | 5 10 Average Rating 7 | 3 8 On Entrance 2 | . 5 Naked Turns . | . . Heaviest Build 32 | 8 32 Greatest Support 40 | 40 40 Greatest Overweight (x) 9 | 1 9 Average Overweight (x) . | . . Largest Inventory Capacity 15 | 5 15 Average Capacity 14 | 5 14 Most Carried 15 | 5 15 Average Carried 9 | 3 9 Final Capacity 15 | 5 15 Final Carried 13 | 3 13 Class Distribution -------------------- 87% | Mutant 12% | Scavenger-Mutant Dominant Class ---------------- Mutant | -10/Materials Resources | -11 -10 ----------- Run | Yrd Mat Matter Collected 683 | 206 477 Remotely . | . . Salvage Created 591 | . 591 Parts 38 | . 38 Haulers Intercepted . | . . Recyclers Shooed 1 | . 1 Parts Field Recycled . | . . Retrieved Matter . | . . Parts Self-Destructed . | . . Prevented . | . . Kills | -11 -10 ------- Run | Yrd Mat Combat Hostiles Destroyed 17 | . 17 Guns 13 | . 13 AOE 4 | . 4 Classes Destroyed 4 | . 4 Builder 1 | . 1 Tunneler 1 | . 1 Swarmer 3 | . 3 Grunt 14 | . 14 Best Kill Streak 6 | . 6 Combat Bots Only 6 | . 6 Max Kills in Single Turn 1 | . 1 Gunslinging . | . . Exploded 1 | . 1 Melee . | . . Uniques/NPCs Destroyed . | . . Combat | -11 -10 -------- Run | Yrd Mat Hostile Shots Fired 144 | . 144 Missed 36 | . 36 Damage Taken 1226 | . 1226 Core 257 | . 257 Absorbed by Shields . | . . Core Remaining (%) 100 | 100 . Volleys Fired 65 | . 65 Largest 2 | . 2 Hottest 120 | . 120 Shots Fired 119 | . 119 Gun 106 | . 106 Cannon 3 | . 3 Launcher 6 | . 6 Special 4 | . 4 Kinetic 109 | . 109 Thermal 4 | . 4 Explosive 6 | . 6 Electromagnetic . | . . Robot Hit Streak 17 | . 17 Robot Miss Streak 5 | . 5 Penetration Max . | . . Secondary Targets 3 | . 3 Max Gunslinging Chain 1 | . 1 Shots Hit Robots 82 | . 82 Core Hits 34 | . 34 Critical Kills . | . . Critical Parts Destroyed 1 | . 1 Critical Strikes 1 | . 1 Destroy 1 | . 1 Melee Attacks . | . . Impact . | . . Slashing . | . . Piercing . | . . Sneak Attacks . | . . Combat Hostiles . | . . Follow-up Attacks . | . . Damage Inflicted 1216 | . 1216 Guns 837 | . 837 Cannons 34 | . 34 Explosions 339 | . 339 Melee . | . . Ramming 6 | . 6 Kinetic 871 | . 871 Thermal . | . . Explosive 339 | . 339 Electromagnetic . | . . Impact . | . . Slashing . | . . Piercing . | . . Highest Corruption . | . . Average Corruption . | . . Corruption Purged . | . . Corruption Blocked . | . . Overload Shots . | . . Overflow Damage . | . . Projectiles . | . . Explosions . | . . Melee . | . . Knockbacks . | . . Impact . | . . Kinetic . | . . Secondary . | . . Self-Inflicted Damage 23 | . 23 Shots 1 | . 1 Rammed 1 | . 1 Targets Rammed 3 | . 3 Kicked 2 | . 2 Crushed . | . . Highest Temperature 22 | . 22 Average Temperature 8 | . 8 Received Heat Transfer 603 | . 603 Siege Activations . | . . Robots Corrupted . | . . Combat Hostiles . | . . Parts Fried . | . . Impact Corruptions . | . . Robots Melted . | . . Combat Hostiles . | . . Parts Melted . | . . Heat Transferred . | . . Parts Sabotaged . | . . Parts Stolen . | . . Parts Stripped . | . . Power Chain Reactions . | . . Alert | -11 -10 ------- Run | Yrd Mat Peak Influence 201 | . 201 Initial . | . . Average 61 | . 66 Maximum Alert Level 1 | . 1 Low Security (%) 98 | 100 98 Level 1 1 | . 1 Level 2 . | . . Level 3 . | . . Level 4 . | . . Level 5 . | . . High Security . | . . Max Security . | . . Squads Dispatched 4 | . 4 Investigation 3 | . 3 Extermination . | . . Reinforcement 1 | . 1 Assault . | . . Garrison . | . . Intercept . | . . Searches Triggered . | . . Construction Impeded . | . . Haulers Reinforced . | . . Active Scanning Responses . | . . Cargo Convoy Interrupts . | . . Stealth | -11 -10 --------- Run | Yrd Mat Distress Signals 2 | . 2 Communications Jammed . | . . Distress Signals . | . . Times Spotted 24 | . 24 Peak Tracking Total 6 | . 6 Tactical Retreats 1 | . 1 Traps | -11 -10 ------- Run | Yrd Mat Traps Triggered 1 | . 1 Indirectly . | . . Trap Hack Attempts . | . . Triggered . | . . Disarmed . | . . Reprogrammed 4 | . 4 Reused 1 | . 1 Traps Extracted . | . . Installed . | . . Triggered 1 | . 1 Machines | -11 -10 ---------- Run | Yrd Mat Machines Disabled . | . . Max in Single Turn . | . . Machines Repaired . | . . Machines Dismantled . | . . Machines Sabotaged . | . . Overloaded Fab Kills . | . . Hacking | -11 -10 --------- Run | Yrd Mat Machines Accessed 4 | . 4 Terminals 3 | . 3 Fabricators . | . . Repair Stations . | . . Recycling Units 1 | . 1 Scanalyzers . | . . Garrison Access . | . . Total Hacks 9 | . 9 Successful 5 | . 5 Failed 4 | . 4 Catastrophic 3 | . 3 Database Lockouts . | . . Manual . | . . Terminals 7 | . 7 Fabricators . | . . Repair Stations . | . . Recycling Units 2 | . 2 Scanalyzers . | . . Garrison Access . | . . Terminal Hacks 3 | . 3 Emergency Access Points 2 | . 2 Reprogram Traps 1 | . 1 Fabricator Hacks . | . . Repair Station Hacks . | . . Recycling Unit Hacks 2 | . 2 Report Inventory 1 | . 1 Retrieve Components 1 | . 1 Scanalyzer . | . . Garrison Access Hacks . | . . Unauthorized Hacks . | . . Terminals . | . . Fabricators . | . . Repair Stations . | . . Recycling Units . | . . Scanalyzers . | . . Garrison Access . | . . Data Cores Recovered . | . . Used . | . . Hacking Detections 4 | . 4 Full Trace Events 1 | . 1 Feedback Events . | . . Feedback Blocked . | . . Robot Schematics Acquired . | . . Robots Built . | . . Authchips . | . . Time . | . . Total Robot Build Rating . | . . Part Schematics Acquired . | . . Parts Built . | . . Authchips . | . . Time . | . . Total Part Build Rating . | . . Parts Repaired . | . . Time . | . . Parts Recycled . | . . Recycled Matter . | . . Retrieved Matter . | . . Retrieved Components 5 | . 5 Parts Scanalyzed . | . . Part Schematics Acquired . | . . Parts Damaged . | . . Bothacking | -11 -10 ------------ Run | Yrd Mat Used RIF Installer . | . . Robots Hacked . | . . Non-combat . | . . Combat . | . . Robot Hacks Applied . | . . Relay Couplers Released . | . . Fabnet Peak Effective % . | . . Robots Rewired . | . . Allies Hacked . | . . Hacks Repelled . | . . Allies | -11 -10 -------- Run | Yrd Mat Total Allies . | . . Largest Group . | . . Highest-Rated Group . | . . Highest-Rated Ally . | . . Total Orders . | . . Ally Attacks . | . . Total Damage . | . . Kills . | . . Allies Corrupted . | . . Allies Melted . | . . Intel | -11 -10 ------- Run | Yrd Mat Robot Analysis Total . | . . Derelict Logs Recovered . | . . Drone Launches . | . . Drone Recoveries . | . . Exploration | -11 -10 ------------- Run | Yrd Mat Turns Passed 991 | 82 909 Spaces Moved 436 | 63 373 Core 30 | 29 1 Treads 206 | 34 172 Legs 200 | . 200 Wheels . | . . Hover . | . . Flight . | . . Fastest Speed 50 | 50 160 Average Speed 170 | 112 180 Slowest Speed 500 | 160 500 Overloaded Moves . | . . Propulsion Burnouts . | . . Robots Hopped . | . . Cave-ins Triggered . | . . Exploration Rate (%) 25 | 4 46 Regions Visited 1 Branch Regions . Pre-discovered Areas . | . . Known Exits Taken . | . . Unknown Exits Taken 1 | 1 . Scrap Searched . | . . Spaces Dug 4 | . 4 Terrain Destroyed 53 | . 53 Melee . | . . Projectile 4 | . 4 AOE 49 | . 49 Terrain Rammed . | . . Walls Destroyed . | . . Machines Disabled . | . . Actions | -11 -10 --------- Run | Yrd Mat Total 566 | 73 493 Wait 4 | . 4 Move 435 | 62 373 Hop . | . . Pick Up 23 | 6 17 Fast Attach 10 | 2 8 Attach 7 | 3 4 Detach 2 | . 2 Swap 6 | . 6 Drop 9 | . 9 Fire 65 | . 65 Melee . | . . Ram . | . . Kick 2 | . 2 Crush 1 | . 1 Escape Stasis . | . . Rewire 2 | . 2 Trap . | . . Miscellaneous . | . . Route ------- -11/Scrapyard -10/Materials (discovered 2 exits: [*Mat] / [*Min]) History --------- Turn | Location | Event 17 | -11/Scrapyard | Discovered new exit (range 15) 83 | -11/Scrapyard | Entered Materials 300 | -10/Materials | Build established: Mutant 384 | -10/Materials | Discovered new exit (range 3) 463 | -10/Materials | Core integrity fell below 50% 535 | -10/Materials | Core integrity fell below 20% 890 | -10/Materials | Discovered new exit (range 15) 992 | -10/Materials | Destroyed by G-34 Mercenary with Small Laser Last Messages --------------- Acquired 4 matter. Dropped Lgt. Assault Rifle. Acquired Assault Rifle. Dropped Lgt. Assault Rifle. T-07 Excavator is excavating. EXIT=FOUND T-07 Excavator is excavating. Triggered Alarm Trap. An alarm sounds. ALERT: Alarm triggered, dispatching investigation squad. Lgt. Assault Rifle destroyed. Ion Engine destroyed. G-34 Mercenary destroyed. The unstable cave ceiling collapses. G-47 Trooper destroyed. G-34 Mercenary destroyed. U-05 Engineer lays Concrete. Kicked U-05 Engineer. U-05 Engineer lays Concrete. Kicked U-05 Engineer. Map ----- +----------------------------------------------------+ | | | | | | | | | ?????#????????#????????????????????????????????? | | ?#?????????????????????#???? ??????????????????? | | ?????????????????#????????"????????????????????? | | ????????????????#??????????????????????????????? | | ???????#####???????######??????????????????????? | | ??????##"""##??#???# #??????????????????????? | | ?????##"!!!"##?????# # ?????????#???????????? | | ?????#"" ""####### # "????????????????????? | | ?????# + # "???? ???????????????? | | ?????# < ####### ?? ?????????????????? | | ??#??# ##????? #?#????# #?????????? | | ?????# #?????? ????????? | | ?????## ######## *%% ????????? | | ?????### ##?# # ????????? | | ?#?# # # #??? ??????##+???????????? | | ????# #????"" ????????????????????? | | ???## # #?????" #=% #?????? ?????????????? | | #?### # #?#???? #????????????????????? | | ????##?# #??????? u # ???????? ?????????? | | ######## #######+## #????????????????????? | | # # # ] #???????????????? | | # # @ g #???????????????? | | # # u # # ??????????????? | | # # #####????????????????????? | | # # #????????????????????????? | | # [ # ##???????????????????????? | | # + #?#??????????????????????? | | # # """ #????????????????????????? | | # ## """"" # ????? ?????????????????? | | # ## """"" #??????????#?????????????? | | # ## """"" +?????????????##?????????? | | # ## """ #????????????? ?????????? | | # ## #??????????### ###???????? | | ######+## #??????????# #?? ????? | | ?# [ # """ #??????????# T" #???????? | | ?# """ # """"" #? ????? ?## " #???????? | | ?# """ + """"" #??????#+#?# #???????? | | ?# """ # """"" #??????# #?? #????#??? | | ?# """ # """ #???####+#### ####?????? | | ?# # #???#* !# # ?????? | | ######### ! ##### ! + + ? ?????? | | # T + + # #?? ?????? | | #! # ######### ##?+#????? | | # # " "" #???????# T#? #????? | | # """ # "R"" #????# ### #????? | | #! """ # """ #???## #?# ##???? | +----------------------------------------------------+ Best States ------------- Heat Dissipation 25 Energy Generation 10 Energy Capacity 250 Matter Stores 300 Matter Capacity 400 Sight Range 16 Robot Scan Range 14 Terrain Scan Range 16 Terrain Scan Density 10 Evasion (%) 50 Recoil Reduction 2 Item Schematics ----------------- None Robot Schematics ------------------ None Fabricated ------------ Nothing Alien Tech Used ----------------- None Achievements -------------- None Challenges ------------ None Game ------ Seed DisruptionPowerStorm Manual? 0 Play Time 00:10:58 Cumulative 16.0 hours Start 2024.08.11 @ 22:10:53 End 2024.08.11 @ 22:18:57 Sessions 1 Manual Loads 0 Difficulty Rogue Special Mode None Game No. 16 Rogue 16 Adventurer 0 Explorer 0 Win Type - Total 0 Types 0/0/0/0/0/0/0/0/0 Lore% 4 Gallery% 18 Achievement% 18 Wizard Run 0 Options --------- Layout 1 ASCII 0 Keyboard 1 Movement Vi Keybinds 0 Fullscreen 1 Font 32/SmallcapsGlow Map View 77x35 Zoom Use 0% Tactical HUD 0 Map Filters NONE Filters NONE Steam 1 RUN: 97646493-1842-4267-abc1-dffcc251d2d4